[Event "Stay Safe Play From Home 330"]
[Site "Mustafa Kemal Atatürk"]
[Date "2020.07.24"]
[Round "3"]
[White "Kongle"]
[Black "Arimurakami"]
[Result "1-0"]
[WhiteElo "1630"]
[BlackElo "1145"]
[Annotator "NA"]
[PlyCount "49"]
[EventDate "2020.07.24"]
[EventType "swiss (blitz)"]
[TimeControl "180+2"]

1. e4 {[%emt 0:00:11]} e5 {[%emt 0:00:03]} 2. Nf3 {[%emt 0:00:01]} Nc6 {[%emt 0:00:02]} 3. Bc4 {[%emt 0:00:01]} Nf6 {[%emt 0:00:08]} 4. Nc3 {[%emt 0:00:03]} a6 {[%emt 0:00:05]} 5. d3 {[%emt 0:00:02]} b5 {[%emt 0:00:03]} 6. Bb3 {[%emt 0:00:01]} Bd6 {[%emt 0:00:05]} 7. Bg5 {[%emt 0:00:02]} h6 {[%emt 0:00:03]} 8. Bh4 {[%emt 0:00:02]} Be7 {[%emt 0:00:09]} 9. a4 {[%emt 0:00:05]} Bb7 {[%emt 0:00:15]} 10. axb5 {[%emt 0:00:03]} axb5 {[%emt 0:00:04]} 11. Rxa8 {[%emt 0:00:01]} Bxa8 {[%emt 0:00:04]} 12. Nxb5 {[%emt 0:00:01]} g5 {[%emt 0:00:13]} 13. Bg3 {[%emt 0:00:04]} Qb8 {[%emt 0:00:25]} 14. Qa1 {[%emt 0:00:07]} O-O {[%emt 0:00:13]} 15. Nc3 {[%emt 0:00:15]} Qb6 {[%emt 0:00:26]} 16. Nxe5 {[%emt 0:00:15]} Nxe5 {[%emt 0:00:08]} 17. Bxe5 {[%emt 0:00:02]} Ng4 {[%emt 0:00:02]} 18. Bg3 {[%emt 0:00:11]} Kh8 {[%emt 0:00:15]} 19. O-O {[%emt 0:00:04]} f5 {[%emt 0:00:06]} 20. exf5 {[%emt 0:00:15]} Qc6 {[%emt 0:00:05]} 21. Bd5 {[%emt 0:00:04]} Qc5 {[%emt 0:00:22]} 22. Bxa8 {[%emt 0:00:05]} c6 {[%emt 0:00:04]} 23. b4 {[%emt 0:00:11]} Qxf5 {[%emt 0:00:03]} 24. Nd5+ {[%emt 0:00:08]} Nf6 {[%emt 0:00:20]} 25. Nxe7 {[%emt 0:00:03] TimeB} 1-0